fUSD/lending_fUSD_20240625
["ID","MTS","AMOUNT","RATE_DAILY","PERIOD"]
[330371770,1719337890062,-2625.16,0.00019726,2]
[330371771,1719337890071,-500.0,0.00019726,2]
[330371772,1719337890081,-500.0,0.00019726,2]
[330371773,1719337890091,-500.0,0.00019726,2]
[330371774,1719337890101,-1523.16,0.00019726,2]
[330371775,1719337890111,-531.38,0.00019726,2]
[330371776,1719337890121,-761.88,0.00019726,2]
[330371777,1719337890131,-500.0,0.00019726,2]
[330371778,1719337890140,-500.0,0.00019726,2]
[330371779,1719337890152,-500.0,0.00019726,2]
[330371780,1719337890162,-983.79,0.00019726,2]
[330371781,1719337890172,-638.84,0.00019726,2]
[330371782,1719337890182,-1492.67,0.00019726,2]
[330371783,1719337890191,-500.0,0.00019726,2]
[330371784,1719337890202,-1515.14,0.00019726,2]
[330371785,1719337890211,-1556.79,0.00019726,2]
[330371786,1719337890220,-500.0,0.00019726,2]
[330371787,1719337890231,-785.12,0.00019726,2]
[330371788,1719337890240,-500.0,0.00019726,2]
[330371789,1719337890250,-500.0,0.00019726,2]
[330371790,1719337890259,-617.17,0.00019726,2]
[330371791,1719337890269,-865.89,0.00019726,2]
[330371792,1719337890278,-1076.26,0.00019726,2]
[330371793,1719337890287,-500.0,0.00019726,2]
[330371794,1719337890297,-1673.1,0.00019726,2]
[330371795,1719337890307,-554.99,0.00019726,2]
[330371796,1719337890316,-1752.72,0.00019726,2]
[330371797,1719337890327,-500.0,0.00019726,2]
[330371798,1719337890336,-500.0,0.00019726,2]
[330371799,1719337890346,-500.0,0.00019726,2]
[330371800,1719337890355,-500.0,0.00019726,2]
[330371801,1719337890365,-1196.42,0.00019726,2]
[330371802,1719337890374,-500.0,0.00019726,2]
[330371803,1719337890384,-500.0,0.00019726,2]
[330371804,1719337890393,-546.0,0.00019726,2]
[330371805,1719337890403,-500.0,0.00019726,2]
[330371806,1719337890413,-500.0,0.00019726,2]
[330371807,1719337890422,-1230.45,0.00019726,2]
[330371808,1719337890432,-1638.27,0.00019726,2]
[330371809,1719337890442,-500.0,0.00019726,2]
[330371810,1719337890626,-500.0,0.00019726,2]
[330371811,1719337890636,-721.81,0.00019726,2]
[330371812,1719337890646,-500.0,0.00019726,2]
[330371813,1719337890656,-916.29,0.00019726,2]
[330371814,1719337890666,-1110.71,0.00019726,2]
[330371815,1719337890675,-1305.49,0.00019726,2]
[330371816,1719337890685,-813.41,0.00019726,2]
[330371817,1719337890695,-500.0,0.00019726,2]
[330371818,1719337890705,-500.0,0.00019726,2]
[330371819,1719337890715,-500.0,0.00019726,2]
[330371820,1719337890724,-500.0,0.00019726,2]
[330371821,1719337890734,-500.0,0.00019726,2]
[330371822,1719337890744,-500.0,0.00019726,2]
[330371823,1719337890756,-500.0,0.00019726,2]
[330371824,1719337890766,-738.2,0.00019726,2]
[330371825,1719337890775,-500.0,0.00019726,2]
[330371826,1719337890785,-629.35,0.00019726,2]
[330371827,1719337890794,-500.0,0.00019726,2]
[330371828,1719337890803,-2096.31,0.00019726,2]
[330371829,1719337890812,-190.73441979,0.00019726,2]
[330371830,1719337890822,-2936.53,0.00019726,2]
[330371831,1719337890832,-500.0,0.00019726,2]
[330371832,1719337890843,-500.0,0.00019726,2]
[330371833,1719337890853,-623.3,0.00019726,2]
[330371834,1719337890862,-500.0,0.00019726,2]
[330371835,1719337890872,-500.0,0.00019726,2]
[330371836,1719337890881,-151.0,0.00019726,2]
[330371837,1719337890891,-151.0,0.00019726,2]
[330371838,1719337890900,-500.0,0.00019726,2]
[330371839,1719337890910,-500.0,0.00019726,2]
[330371840,1719337890920,-500.0,0.00019726,2]
[330371841,1719337890930,-500.0,0.00019726,2]
[330371842,1719337890940,-500.0,0.00019726,2]
[330371843,1719337890950,-500.0,0.00019726,2]
[330371844,1719337890960,-717.21,0.00019726,2]
[330371846,1719337890970,-500.0,0.00019726,2]
[330371847,1719337890979,-500.0,0.00019726,2]
[330371848,1719337890988,-500.0,0.00019726,2]
[330371850,1719337890999,-759.42,0.00019726,2]
[330371851,1719337891008,-500.0,0.00019726,2]
[330371852,1719337891018,-971.03,0.00019726,2]
[330371853,1719337891027,-524.13,0.00019726,2]
[330371854,1719337891037,-500.0,0.00019726,2]
[330371855,1719337891047,-598.1,0.00019726,2]
[330371856,1719337891057,-500.0,0.00019726,2]
[330371857,1719337891067,-500.0,0.00019726,2]
[330371858,1719337891077,-589.92,0.00019726,2]
[330371859,1719337891086,-500.0,0.00019726,2]
[330371860,1719337891096,-675.22,0.00019726,2]
[330371861,1719337891106,-500.0,0.00019726,2]
[330371862,1719337891116,-500.0,0.00019726,2]
[330371863,1719337891125,-905.04,0.00019726,2]
[330371864,1719337891135,-669.2,0.00019726,2]
[330371865,1719337891145,-1247.28,0.00019726,2]
[330371866,1719337891159,-500.0,0.00019726,2]
[330371867,1719337891168,-1109.18,0.00019726,2]
[330371868,1719337891178,-500.0,0.00019726,2]
[330371869,1719337891189,-500.0,0.00019726,2]
[330371870,1719337891199,-500.0,0.00019726,2]
[330371871,1719337891209,-500.0,0.00019726,2]
[330371872,1719337891218,-500.0,0.00019726,2]
[330371873,1719337891228,-500.0,0.00019726,2]
[330371874,1719337891242,-1096.34,0.00019726,2]
[330371875,1719337891252,-1550.19,0.00019726,2]
[330371876,1719337891262,-500.0,0.00019726,2]
[330371877,1719337891272,-500.0,0.00019726,2]
[330371878,1719337891282,-757.11,0.00019726,2]
[330371879,1719337891291,-500.0,0.00019726,2]
[330371880,1719337891301,-500.0,0.00019726,2]
[330371881,1719337891310,-500.0,0.00019726,2]
[330371882,1719337891320,-500.0,0.00019726,2]
[330371883,1719337891330,-500.0,0.00019726,2]
[330371884,1719337891340,-1826.94,0.00019726,2]
[330371885,1719337891350,-500.0,0.00019726,2]
[330371886,1719337891359,-773.72,0.00019726,2]
[330371887,1719337891368,-500.0,0.00019726,2]
[330371888,1719337891377,-500.0,0.00019726,2]
[330371889,1719337891388,-1728.25,0.00019726,2]
[330371890,1719337891397,-973.7,0.00019726,2]
[330371891,1719337891407,-500.0,0.00019726,2]
[330371892,1719337891416,-773.97,0.00019726,2]
[330371893,1719337891425,-1154.02,0.00019726,2]
[330371894,1719337891435,-1784.58,0.00019726,2]
[330371895,1719337891444,-658.68,0.00019726,2]
[330371896,1719337891454,-525.47,0.00019726,2]
[330371897,1719337891463,-500.0,0.00019726,2]
[330371898,1719337891473,-894.86,0.00019726,2]
[330371899,1719337891482,-501.18569248,0.00019726,2]
[330371900,1719337891491,-1106.26,0.00019726,2]
[330371901,1719337891500,-500.0,0.00019726,2]
[330371902,1719337891510,-556.82,0.00019726,2]
[330371903,1719337891520,-1088.59,0.00019726,2]
[330371904,1719337891529,-500.0,0.00019726,2]
[330371905,1719337891538,-500.0,0.00019726,2]
[330371906,1719337891548,-513.47084854,0.00019726,2]
[330371907,1719337891557,-1061.87,0.00019726,2]
[330371908,1719337891567,-1519.41,0.00019726,2]
[330371909,1719337891576,-1886.29,0.00019726,2]
[330371910,1719337891587,-671.23,0.00019726,2]
[330371911,1719337891596,-842.01,0.00019726,2]
[330371912,1719337891606,-500.0,0.00019726,2]
[330371913,1719337891616,-500.0,0.00019726,2]
[330371914,1719337891625,-848.32,0.00019726,2]
[330371915,1719337891635,-500.0,0.00019726,2]
[330371916,1719337891645,-571.84,0.00019726,2]
[330371917,1719337891654,-547.07,0.00019726,2]
[330371918,1719337891664,-1275.37,0.00019726,2]
[330371919,1719337891674,-708.32,0.00019726,2]
[330371920,1719337891683,-500.0,0.00019726,2]
[330371921,1719337891693,-545.35,0.00019726,2]
[330371922,1719337891703,-500.0,0.00019726,2]
[330371923,1719337891712,-1199.18,0.00019726,2]
[330371924,1719337891722,-500.0,0.00019726,2]
[330371925,1719337891731,-500.0,0.00019726,2]
[330371926,1719337891741,-500.0,0.00019726,2]
[330371927,1719337891750,-2554.0,0.00019726,2]
[330371928,1719337891760,-500.0,0.00019726,2]
[330371929,1719337891769,-346.19300324,0.00019726,2]
[330371930,1719337891779,-500.0,0.00019726,2]
[330371931,1719337891788,-294.40343118,0.00019726,2]
[330371932,1719337891797,-500.0,0.00019726,2]
[330371933,1719337891806,-500.0,0.00019726,2]
[330371934,1719337891816,-896.63,0.00019726,2]
[330371935,1719337891826,-1510.6,0.00019726,2]
[330371936,1719337891840,-899.64,0.00019726,2]
[330371937,1719337891857,-500.0,0.00019726,2]
[330371938,1719337891875,-500.0,0.00019726,2]
[330371939,1719337891894,-678.52,0.00019726,2]
[330371940,1719337891915,-2297.51,0.00019726,2]
[330371941,1719337891932,-500.0,0.00019726,2]
[330371942,1719337891950,-500.0,0.00019726,2]
[330371943,1719337891966,-500.0,0.00019726,2]
[330371944,1719337891979,-500.0,0.00019726,2]
[330371945,1719337891998,-706.8,0.00019726,2]
[330371946,1719337892017,-500.0,0.00019726,2]
[330371947,1719337892031,-500.0,0.00019726,2]
[330371948,1719337892046,-500.0,0.00019726,2]
[330371949,1719337892064,-500.0,0.00019726,2]
[330371950,1719337892080,-503.66296135,0.00019726,2]
[330371951,1719337892095,-500.0,0.00019726,2]
[330371952,1719337892111,-2864.14,0.00019726,2]
[330371953,1719337892127,-500.0,0.00019726,2]
[330371954,1719337892142,-500.0,0.00019726,2]
[330371955,1719337892162,-500.0,0.00019726,2]
[330371956,1719337892176,-767.35,0.00019726,2]
[330371957,1719337892193,-500.0,0.00019726,2]
[330371958,1719337892208,-1219.8,0.00019726,2]
[330371959,1719337892223,-817.0,0.00019726,2]
[330371960,1719337892240,-602.68,0.00019726,2]
[330371961,1719337892256,-500.0,0.00019726,2]
[330371962,1719337892271,-750.73,0.00019726,2]
[330371963,1719337892286,-500.0,0.00019726,2]
[330371964,1719337892303,-983.23,0.00019726,2]
[330371965,1719337892317,-2190.09,0.00019726,2]
[330371966,1719337892332,-500.0,0.00019726,2]
[330371967,1719337892348,-1053.59,0.00019726,2]
[330371968,1719337892364,-1755.84,0.00019726,2]
[330371969,1719337892380,-502.66,0.00019726,2]
[330371970,1719337892395,-811.39,0.00019726,2]
[330371971,1719337892410,-500.0,0.00019726,2]
[330371972,1719337892426,-500.0,0.00019726,2]
[330371973,1719337892440,-1075.29,0.00019726,2]
[330371974,1719337892463,-1534.29,0.00019726,2]
[330371975,1719337892478,-500.0,0.00019726,2]
[330371976,1719337892492,-721.67,0.00019726,2]
[330371977,1719337892508,-500.0,0.00019726,2]
[330371978,1719337892523,-1408.46,0.00019726,2]
[330371979,1719337892538,-545.9,0.00019726,2]
[330371980,1719337892553,-881.26,0.00019726,2]
[330371981,1719337892568,-1154.57,0.00019726,2]
[330371982,1719337892585,-500.0,0.00019726,2]
[330371983,1719337892599,-1299.57,0.00019726,2]
[330371984,1719337892614,-2576.08,0.00019726,2]
[330371985,1719337892630,-500.0,0.00019726,2]
[330371986,1719337892645,-561.35,0.00019726,2]
[330371987,1719337892660,-764.04,0.00019726,2]
[330371988,1719337892676,-500.0,0.00019726,2]
[330371989,1719337892691,-500.0,0.00019726,2]
[330371990,1719337892706,-500.0,0.00019726,2]
[330371991,1719337892722,-500.0,0.00019726,2]
[330371992,1719337892737,-500.0,0.00019726,2]
[330371993,1719337892752,-500.0,0.00019726,2]
[330371994,1719337892767,-500.0,0.00019726,2]
[330371995,1719337892783,-1230.16,0.00019726,2]
[330371996,1719337892798,-500.0,0.00019726,2]
[330371997,1719337892813,-500.0,0.00019726,2]
[330371998,1719337892829,-500.0,0.00019726,2]
[330371999,1719337892844,-1956.39,0.00019726,2]
[330372000,1719337892860,-947.68,0.00019726,2]
[330372001,1719337892874,-654.42,0.00019726,2]
[330372002,1719337892890,-2524.99,0.00019726,2]
[330372003,1719337892905,-947.4,0.00019726,2]
[330372004,1719337892921,-1606.65,0.00019726,2]
[330372005,1719337892936,-500.0,0.00019726,2]
[330372006,1719337892950,-500.0,0.00019726,2]
[330372007,1719337892965,-1554.23,0.00019726,2]
[330372008,1719337892981,-604.23522542,0.00019726,2]
[330372009,1719337892997,-754.05,0.00019726,2]
[330372010,1719337893013,-526.12,0.00019726,2]
[330372011,1719337893029,-553.36,0.00019726,2]
[330372012,1719337893045,-500.0,0.00019726,2]
[330372013,1719337893061,-500.0,0.00019726,2]
[330372014,1719337893077,-500.0,0.00019726,2]
[330372015,1719337893093,-500.0,0.00019726,2]
[330372016,1719337893107,-381.09501549,0.00019726,2]
[330372017,1719337893122,-500.0,0.00019726,2]
[330372018,1719337893138,-500.0,0.00019726,2]
[330372019,1719337893157,-500.0,0.00019726,2]
[330372020,1719337893172,-2884.08,0.00019726,2]
[330372021,1719337893187,-1472.44,0.00019726,2]
[330372022,1719337893203,-852.6,0.00019726,2]
[330372023,1719337893218,-500.0,0.00019726,2]
[330372024,1719337893234,-500.0,0.00019726,2]
[330372025,1719337893250,-764.29,0.00019726,2]
[330372026,1719337893266,-1169.5,0.00019726,2]
[330372027,1719337893282,-500.0,0.00019726,2]
[330372028,1719337893299,-1362.64,0.00019726,2]
[330372029,1719337893315,-500.0,0.00019726,2]
[330372030,1719337893333,-500.0,0.00019726,2]
[330372031,1719337893349,-581.63,0.00019726,2]
[330372032,1719337893365,-500.0,0.00019726,2]
[330372033,1719337893380,-686.07,0.00019726,2]
[330372034,1719337893395,-508.41,0.00019726,2]
[330372035,1719337893410,-500.0,0.00019726,2]
[330372036,1719337893425,-500.0,0.00019726,2]
[330372037,1719337893439,-666.55,0.00019726,2]
[330372038,1719337893454,-753.97,0.00019726,2]
[330372039,1719337893469,-500.0,0.00019726,2]
[330372040,1719337893484,-666.4,0.00019726,2]
[330372041,1719337893499,-500.0,0.00019726,2]
[330372042,1719337893512,-500.0,0.00019726,2]
[330372043,1719337893527,-500.0,0.00019726,2]
[330372044,1719337893541,-3770.43,0.00019726,2]
[330372045,1719337893556,-500.0,0.00019726,2]
[330372046,1719337893570,-500.0,0.00019726,2]
[330372047,1719337893587,-806.51,0.00019726,2]
[330372048,1719337893602,-500.0,0.00019726,2]
[330372049,1719337893618,-1414.23,0.00019726,2]
[330372050,1719337893632,-836.39,0.00019726,2]
[330372051,1719337893647,-8800.46,0.00019726,2]
[330372052,1719337893663,-500.0,0.00019726,2]
[330372053,1719337893678,-2037.79,0.00019726,2]
[330372054,1719337893696,-500.0,0.00019726,2]
[330372055,1719337893710,-1917.68,0.00019726,2]
[330372056,1719337893726,-735.13,0.00019726,2]
[330372057,1719337893741,-500.0,0.00019726,2]
[330372058,1719337893756,-500.0,0.00019726,2]
[330372059,1719337894020,-500.0,0.00019726,2]
[330372060,1719337894030,-500.0,0.00019726,2]
[330372061,1719337894039,-500.0,0.00019726,2]
[330372062,1719337894049,-500.0,0.00019726,2]
[330372063,1719337894058,-530.5,0.00019726,2]
[330372064,1719337894068,-879.5,0.00019726,2]
[330372065,1719337894078,-500.0,0.00019726,2]
[330372066,1719337894087,-828.4,0.00019726,2]
[330372067,1719337894097,-3037.31,0.00019726,2]
[330372068,1719337894107,-2609.54,0.00019726,2]
[330372069,1719337894116,-500.0,0.00019726,2]
[330372070,1719337894125,-500.0,0.00019726,2]
[330372071,1719337894135,-958.33,0.00019726,2]
[330372072,1719337894144,-500.0,0.00019726,2]
[330372073,1719337894160,-500.0,0.00019726,2]
[330372074,1719337894169,-500.0,0.00019726,2]
[330372075,1719337894178,-500.0,0.00019726,2]
[330372076,1719337894187,-500.0,0.00019726,2]
[330372077,1719337894197,-2824.72,0.00019726,2]
[330372078,1719337894207,-500.0,0.00019726,2]
[330372079,1719337894217,-1143.56,0.00019726,2]
[330372080,1719337894226,-803.49,0.00019726,2]
[330372081,1719337894239,-500.0,0.00019726,2]
[330372082,1719337894250,-1534.53,0.00019726,2]
[330372083,1719337894259,-673.18,0.00019726,2]
[330372084,1719337894269,-3376.96,0.00019726,2]
[330372085,1719337894278,-500.0,0.00019726,2]
[330372086,1719337894287,-620.54,0.00019726,2]
[330372087,1719337894297,-500.0,0.00019726,2]
[330372088,1719337894307,-500.0,0.00019726,2]
[330372089,1719337894317,-3353.42,0.00019726,2]
[330372090,1719337894326,-3376.21,0.00019726,2]
[330372091,1719337894337,-500.0,0.00019726,2]
[330372092,1719337894346,-500.0,0.00019726,2]
[330372093,1719337894357,-501.21,0.00019726,2]
[330372094,1719337894367,-500.0,0.00019726,2]
[330372095,1719337894376,-500.0,0.00019726,2]
[330372096,1719337894386,-568.68189345,0.00019726,2]
[330372097,1719337894395,-532.64,0.00019726,2]
[330372098,1719337894406,-500.0,0.00019726,2]
[330372099,1719337894416,-500.0,0.00019726,2]
[330372100,1719337894426,-1445.77,0.00019726,2]
[330372101,1719337894436,-500.0,0.00019726,2]
[330372102,1719337894456,-500.0,0.00019726,2]
[330372103,1719337894467,-2523.52,0.00019726,2]
[330372104,1719337894478,-500.0,0.00019726,2]
[330372105,1719337894488,-1776.47,0.00019726,2]
[330372106,1719337894498,-584.05,0.00019726,2]
[330372107,1719337894508,-500.0,0.00019726,2]
[330372108,1719337894519,-2900.66,0.00019726,2]
[330372109,1719337894529,-500.0,0.00019726,2]
[330372110,1719337894540,-2238.06,0.00019726,2]
[330372111,1719337894550,-3124.53,0.00019726,2]
[330372112,1719337894560,-500.0,0.00019726,2]
[330372113,1719337894570,-700.23,0.00019726,2]
[330372114,1719337894581,-1733.73,0.00019726,2]
[330372115,1719337894591,-762.22,0.00019726,2]
[330372116,1719337894601,-500.0,0.00019726,2]
[330372117,1719337894611,-2060.1,0.00019726,2]
[330372118,1719337894621,-2923.75,0.00019726,2]
[330372119,1719337894632,-1916.65,0.00019726,2]
[330372120,1719337894642,-500.0,0.00019726,2]
[330372121,1719337894652,-813.4,0.00019726,2]
[330372122,1719337894662,-500.0,0.00019726,2]
[330372123,1719337894673,-579.87,0.00019726,2]
[330372124,1719337894683,-1319.57,0.00019726,2]
[330372125,1719337894693,-500.0,0.00019726,2]
[330372126,1719337894703,-594.09,0.00019726,2]
[330372127,1719337894713,-500.0,0.00019726,2]
[330372128,1719337894723,-500.0,0.00019726,2]
[330372129,1719337894732,-627.23443964,0.00019726,2]
[330372130,1719337894742,-500.0,0.00019726,2]
[330372131,1719337894751,-1466.86,0.00019726,2]
[330372132,1719337894761,-805.41,0.00019726,2]
[330372133,1719337894772,-747.48,0.00019726,2]
[330372134,1719337894782,-823.04,0.00019726,2]
[330372135,1719337894793,-273.45685744,0.00019726,2]
[330372136,1719337894803,-1175.45,0.00019726,2]
[330372137,1719337894813,-2342.23,0.00019726,2]
[330372138,1719337894823,-500.0,0.00019726,2]
[330372139,1719337894833,-1142.76,0.00019726,2]
[330372140,1719337894843,-500.0,0.00019726,2]
[330372141,1719337894852,-500.0,0.00019726,2]
[330372142,1719337894863,-500.0,0.00019726,2]
[330372143,1719337894873,-500.0,0.00019726,2]
[330372144,1719337894883,-4082.89,0.00019726,2]
[330372145,1719337894893,-1742.95,0.00019726,2]
[330372146,1719337894903,-500.0,0.00019726,2]
[330372147,1719337894913,-2181.34,0.00019726,2]
[330372148,1719337894923,-1689.47,0.00019726,2]
[330372149,1719337894933,-2213.32,0.00019726,2]
[330372150,1719337894943,-500.0,0.00019726,2]
[330372151,1719337894953,-500.0,0.00019726,2]
[330372152,1719337894963,-868.48,0.00019726,2]
[330372153,1719337894972,-585.34,0.00019726,2]
[330372154,1719337894983,-500.0,0.00019726,2]
[330372155,1719337894993,-500.0,0.00019726,2]
[330372156,1719337895003,-1800.31,0.00019726,2]
[330372157,1719337895013,-500.0,0.00019726,2]
[330372158,1719337895023,-500.0,0.00019726,2]
[330372159,1719337895033,-500.0,0.00019726,2]
[330372160,1719337895043,-500.0,0.00019726,2]
[330372161,1719337895054,-4580.93,0.00019726,2]
[330372162,1719337895064,-500.0,0.00019726,2]
[330372163,1719337895074,-500.0,0.00019726,2]
[330372164,1719337895084,-500.0,0.00019726,2]
[330372165,1719337895094,-3101.99,0.00019726,2]
[330372166,1719337895104,-2613.05,0.00019726,2]
[330372167,1719337895114,-1971.62,0.00019726,2]
[330372168,1719337895124,-500.0,0.00019726,2]
[330372169,1719337895134,-1370.76,0.00019726,2]
[330372170,1719337895145,-1886.11,0.00019726,2]
[330372171,1719337895159,-500.0,0.00019726,2]
[330372172,1719337895169,-704.37,0.00019726,2]
[330372173,1719337895179,-500.0,0.00019726,2]
[330372174,1719337895189,-500.0,0.00019726,2]
[330372175,1719337895203,-544.4093695,0.00019726,2]
[330372176,1719337895213,-500.0,0.00019726,2]
[330372177,1719337895225,-500.0,0.00019726,2]
[330372178,1719337895238,-4341.89,0.00019726,2]
[330372179,1719337895248,-1807.06,0.00019726,2]
[330372180,1719337895258,-500.0,0.00019726,2]
[330372181,1719337895268,-1880.49,0.00019726,2]
[330372182,1719337895277,-500.0,0.00019726,2]
[330372183,1719337895287,-1338.15,0.00019726,2]
[330372184,1719337895297,-2231.21,0.00019726,2]
[330372185,1719337895307,-500.0,0.00019726,2]
[330372186,1719337895316,-2602.84,0.00019726,2]
[330372187,1719337895327,-619.17,0.00019726,2]
[330372188,1719337895337,-1282.5,0.00019726,2]
[330372189,1719337895347,-500.0,0.00019726,2]
[330372190,1719337895359,-2445.36,0.00019726,2]
[330372191,1719337895369,-916.11,0.00019726,2]
[330372192,1719337895379,-500.0,0.00019726,2]
[330372193,1719337895389,-500.0,0.00019726,2]
[330372194,1719337895399,-800.62,0.00019726,2]
[330372195,1719337895410,-500.0,0.00019726,2]
[330372196,1719337895420,-883.29,0.00019726,2]
[330372197,1719337895430,-4820.28,0.00019726,2]
[330372198,1719337895441,-529.48,0.00019726,2]
[330372199,1719337895450,-500.0,0.00019726,2]
[330372200,1719337895461,-1217.56,0.00019726,2]
[330372201,1719337895471,-1772.0,0.00019726,2]
[330372202,1719337895481,-2640.7,0.00019726,2]
[330372203,1719337895491,-500.0,0.00019726,2]
[330372204,1719337895500,-500.0,0.00019726,2]
[330372205,1719337895511,-631.2,0.00019726,2]
[330372206,1719337895521,-1941.76,0.00019726,2]
[330372207,1719337895532,-500.0,0.00019726,2]
[330372208,1719337895542,-500.0,0.00019726,2]
[330372209,1719337895551,-500.0,0.00019726,2]
[330372210,1719337895561,-1336.39,0.00019726,2]
[330372211,1719337895571,-500.0,0.00019726,2]
[330372212,1719337895585,-500.0,0.00019726,2]
[330372213,1719337895595,-500.0,0.00019726,2]
[330372214,1719337895605,-1027.49,0.00019726,2]
[330372215,1719337895620,-500.0,0.00019726,2]
[330372216,1719337895630,-1409.22,0.00019726,2]
[330372217,1719337895640,-1417.51,0.00019726,2]
[330372218,1719337895650,-592.68,0.00019726,2]
[330372219,1719337895660,-814.4,0.00019726,2]
[330372220,1719337895670,-839.77,0.00019726,2]
[330372221,1719337895680,-500.0,0.00019726,2]
[330372222,1719337895690,-965.36,0.00019726,2]
[330372223,1719337895700,-500.0,0.00019726,2]
[330372224,1719337895710,-500.0,0.00019726,2]
[330372225,1719337895720,-500.0,0.00019726,2]
[330372226,1719337895730,-1173.93,0.00019726,2]
[330372227,1719337895739,-973.12,0.00019726,2]
[330372228,1719337895749,-951.86,0.00019726,2]
[330372229,1719337895759,-2021.58,0.00019726,2]
[330372230,1719337895768,-835.47,0.00019726,2]
[330372231,1719337895779,-500.0,0.00019726,2]
[330372232,1719337895788,-500.0,0.00019726,2]
[330372233,1719337895798,-3257.55,0.00019726,2]
[330372234,1719337895808,-2073.78,0.00019726,2]
[330372235,1719337895818,-500.0,0.00019726,2]
[330372236,1719337895829,-2007.39,0.00019726,2]
[330372237,1719337895838,-500.0,0.00019726,2]
[330372238,1719337895847,-500.0,0.00019726,2]
[330372239,1719337895857,-500.0,0.00019726,2]
[330372240,1719337895867,-500.0,0.00019726,2]
[330372241,1719337895877,-567.86,0.00019726,2]
[330372242,1719337895887,-500.0,0.00019726,2]
[330372243,1719337895897,-500.0,0.00019726,2]
[330372244,1719337895907,-957.72,0.00019726,2]
[330372245,1719337895917,-500.0,0.00019726,2]
[330372246,1719337895926,-500.0,0.00019726,2]
[330372247,1719337895936,-500.0,0.00019726,2]
[330372248,1719337895946,-683.7,0.00019726,2]
[330372249,1719337895956,-4421.52,0.00019726,2]
[330372250,1719337895965,-1115.85,0.00019726,2]
[330372251,1719337895975,-500.0,0.00019726,2]
[330372252,1719337895985,-500.0,0.00019726,2]
[330372253,1719337895995,-500.0,0.00019726,2]
[330372254,1719337896005,-597.24,0.00019726,2]
[330372255,1719337896014,-517.85,0.00019726,2]
[330372256,1719337896024,-500.0,0.00019726,2]
[330372257,1719337896034,-500.0,0.00019726,2]
[330372258,1719337896044,-500.0,0.00019726,2]
[330372259,1719337896053,-500.0,0.00019726,2]
[330372260,1719337896063,-500.0,0.00019726,2]
[330372261,1719337896073,-500.0,0.00019726,2]
[330372262,1719337896089,-1088.07,0.00019726,2]
[330372263,1719337896099,-857.24,0.00019726,2]
[330372264,1719337896108,-2633.78,0.00019726,2]
[330372265,1719337896118,-2302.84,0.00019726,2]
[330372266,1719337896132,-500.0,0.00019726,2]
[330372267,1719337896142,-500.0,0.00019726,2]
[330372268,1719337896156,-2105.71,0.00019726,2]
[330372269,1719337896166,-500.0,0.00019726,2]
[330372270,1719337896177,-155.43382088,0.00019726,2]
[330372271,1719337896188,-500.0,0.00019726,2]